[Event "FIDE U16 Olympiad_boards_81-124"]
[Site "Eindhoven, Netherlands"]
[Date "2023.08.14"]
[Round "2.22"]
[White "Kaloki, Hawi"]
[Black "Soojay, Jorah"]
[Result "1-0"]
[TimeControl "45min+10sec"]
[WhiteElo "1351"]
[BlackElo "1566"]

1. e4 {[%clk 00:45:16]} {[%emt 00:00:02]} d5 {[%clk 00:44:59]} {[%emt
00:00:23]} 2. exd5 {[%clk 00:45:22]} {[%emt 00:00:04]} Nf6 {[%clk 00:45:08]} 3.
d4 {[%clk 00:45:22]} {[%emt 00:00:09]} Bg4 {[%clk 00:45:16]} {[%emt 00:00:02]}
4. Be2 {[%clk 00:45:20]} {[%emt 00:00:12]} Bxe2 {[%clk 00:45:23]} {[%emt
00:00:03]} 5. Qxe2 {[%clk 00:44:33]} {[%emt 00:00:57]} Qxd5 {[%clk 00:45:31]}
{[%emt 00:00:02]} 6. Nf3 {[%clk 00:44:35]} {[%emt 00:00:08]} Nc6 {[%clk
00:45:26]} {[%emt 00:00:15]} 7. Nc3 {[%clk 00:43:58]} {[%emt 00:00:47]} Qd7
{[%clk 00:45:34]} {[%emt 00:00:02]} 8. Be3 {[%clk 00:43:06]} {[%emt 00:01:02]}
O-O-O {[%clk 00:44:29]} {[%emt 00:01:15]} 9. O-O-O {[%clk 00:43:01]} {[%emt
00:00:16]} e6 {[%clk 00:44:36]} {[%emt 00:00:03]} 10. Ne5 {[%clk 00:32:59]}
{[%emt 00:10:11]} Qe8 {[%clk 00:43:47]} {[%emt 00:00:58]} 11. Qb5 {[%clk
00:27:38]} {[%emt 00:05:32]} a6 {[%clk 00:36:23]} {[%emt 00:07:33]} 12. Qa4
{[%clk 00:27:28]} {[%emt 00:00:21]} Nxe5 {[%clk 00:35:25]} {[%emt 00:01:09]} 13.
Qxe8 {[%clk 00:27:32]} {[%emt 00:00:05]} Rxe8 {[%clk 00:35:32]} {[%emt
00:00:02]} 14. dxe5 {[%clk 00:27:40]} {[%emt 00:00:03]} Nd7 {[%clk 00:35:41]}
{[%emt 00:00:01]} 15. f4 {[%clk 00:27:24]} {[%emt 00:00:27]} Bc5 {[%clk
00:32:51]} {[%emt 00:02:59]} 16. Bxc5 {[%clk 00:25:01]} {[%emt 00:02:33]} Nxc5
{[%clk 00:32:58]} {[%emt 00:00:02]} 17. Rd2 {[%clk 00:22:57]} {[%emt 00:02:16]}
h6 {[%clk 00:30:46]} {[%emt 00:02:22]} 18. Rhd1 {[%clk 00:22:33]} {[%emt
00:00:33]} Re7 {[%clk 00:30:53]} {[%emt 00:00:03]} 19. b4 {[%clk 00:22:09]}
{[%emt 00:00:34]} Nd7 {[%clk 00:31:00]} {[%emt 00:00:03]} 20. Ne4 {[%clk
00:21:10]} {[%emt 00:01:09]} Nb6 {[%clk 00:27:39]} {[%emt 00:03:31]} 21. Nc5
{[%clk 00:17:56]} {[%emt 00:03:24]} Nd5 {[%clk 00:21:40]} {[%emt 00:06:09]} 22.
Rd4 {[%clk 00:18:04]} {[%emt 00:00:02]} Nc3 {[%clk 00:12:07]} {[%emt 00:09:42]}
23. R1d2 {[%clk 00:18:13]} {[%emt 00:00:02]} Rg8 {[%clk 00:06:51]} {[%emt
00:05:26]} 24. h4 {[%clk 00:17:26]} {[%emt 00:00:57]} Rge8 {[%clk 00:05:26]}
{[%emt 00:01:34]} 25. a3 {[%clk 00:16:32]} {[%emt 00:01:05]} b6 {[%clk
00:04:47]} {[%emt 00:00:48]} 26. Ne4 {[%clk 00:12:00]} {[%emt 00:04:43]} Nxe4
{[%clk 00:03:08]} {[%emt 00:01:49]} 27. Rxe4 {[%clk 00:12:08]} {[%emt
00:00:02]} Rd8 {[%clk 00:01:27]} {[%emt 00:01:52]} 28. h5 {[%clk 00:11:47]}
{[%emt 00:00:31]} Red7 {[%clk 00:01:04]} {[%emt 00:00:33]} 29. Ree2 {[%clk
00:11:47]} {[%emt 00:00:09]} Kb7 {[%clk 00:01:09]} {[%emt 00:00:06]} 30. Rxd7
{[%clk 00:11:20]} {[%emt 00:00:36]} Rxd7 {[%clk 00:01:18]} 31. Rd2 {[%clk
00:11:26]} {[%emt 00:00:05]} Rxd2 {[%clk 00:00:32]} {[%emt 00:00:55]} 32. Kxd2
{[%clk 00:11:35]} {[%emt 00:00:01]} Kc6 {[%clk 00:00:42]} 33. Kd3 {[%clk
00:11:05]} {[%emt 00:00:40]} Kb5 {[%clk 00:00:50]} {[%emt 00:00:03]} 34. g4
{[%clk 00:11:12]} {[%emt 00:00:02]} f6 {[%clk 00:00:16]} {[%emt 00:00:44]} 35.
exf6 {[%clk 00:10:57]} {[%emt 00:00:25]} gxf6 {[%clk 00:00:25]} {[%emt
00:00:01]} 36. g5 {[%clk 00:11:04]} {[%emt 00:00:02]} fxg5 {[%clk 00:00:14]}
{[%emt 00:00:21]} 37. fxg5 {[%clk 00:11:13]} {[%emt 00:00:02]} hxg5 {[%clk
00:00:11]} {[%emt 00:00:13]} 38. h6 {[%clk 00:11:21]} Ka4 {[%clk 00:00:17]}
{[%emt 00:00:04]} 39. h7 {[%clk 00:10:53]} {[%emt 00:00:38]} Kxa3 {[%clk
00:00:25]} {[%emt 00:00:02]} 40. h8=Q {[%clk 00:09:55]} {[%emt 00:01:08]} Kxb4
{[%clk 00:00:33]} {[%emt 00:00:03]} 41. Qd4+ {[%clk 00:10:03]} {[%emt
00:00:02]} Kb5 {[%clk 00:00:32]} {[%emt 00:00:10]} 42. Qc4+ {[%clk 00:10:11]}
{[%emt 00:00:03]} Ka5 {[%clk 00:00:39]} {[%emt 00:00:02]} 43. Kc3 {[%clk
00:10:18]} {[%emt 00:00:02]} c5 {[%clk 00:00:40]} {[%emt 00:00:10]} 44. Kb3
{[%clk 00:10:11]} {[%emt 00:00:17]} b5 {[%clk 00:00:22]} {[%emt 00:00:28]} 45.
Qxc5 {[%clk 00:10:18]} {[%emt 00:00:03]} 1-0

[Event "FIDE U16 Olympiad_boards_81-124"]
[Site "Eindhoven, Netherlands"]
[Date "2023.08.14"]
[Round "2.23"]
[White "Boshoma, Chisomo"]
[Black "Kuka, Kyle"]
[Result "1-0"]
[TimeControl "45min+10sec"]
[WhiteElo "1668"]
[BlackElo "1187"]

1. e4 {[%clk 00:45:18]} {[%emt 00:00:01]} c6 {[%clk 00:45:18]} {[%emt
00:00:02]} 2. d4 {[%clk 00:45:18]} {[%emt 00:00:11]} d5 {[%clk 00:45:25]}
{[%emt 00:00:02]} 3. Nc3 {[%clk 00:45:24]} {[%emt 00:00:04]} dxe4 {[%clk
00:45:33]} {[%emt 00:00:02]} 4. Nxe4 {[%clk 00:45:32]} {[%emt 00:00:02]} Nf6
{[%clk 00:45:41]} {[%emt 00:00:02]} 5. Nxf6+ {[%clk 00:45:40]} {[%emt
00:00:02]} exf6 {[%clk 00:45:49]} {[%emt 00:00:02]} 6. Nf3 {[%clk 00:45:47]}
{[%emt 00:00:02]} Bg4 {[%clk 00:45:57]} {[%emt 00:00:03]} 7. Bd3 {[%clk
00:45:54]} {[%emt 00:00:04]} Bxf3 {[%clk 00:45:50]} {[%emt 00:00:16]} 8. Qxf3
{[%clk 00:46:02]} {[%emt 00:00:02]} Qd7 {[%emt 00:00:03]} 9. d5 Qxd5 {[%clk
00:45:57]} 10. Be3 {[%emt 00:00:11]} Qd4 11. Bf4 {[%clk 00:46:01]} Be7 {[%clk
00:45:15]} {[%emt 00:00:52]} 12. O-O-O {[%clk 00:46:06]} {[%emt 00:00:05]} Qa4
{[%clk 00:44:07]} {[%emt 00:01:17]} 13. Rhe1 {[%clk 00:46:09]} {[%emt
00:00:08]} Kf8 {[%clk 00:42:53]} {[%emt 00:01:24]} 14. Rxe7 {[%clk 00:46:09]}
{[%emt 00:00:11]} g5 {[%clk 00:37:12]} {[%emt 00:05:50]} 15. Bxg5 {[%clk
00:45:20]} {[%emt 00:00:58]} Qxa2 {[%clk 00:36:38]} {[%emt 00:00:44]} 16. Qxf6
{[%clk 00:44:05]} {[%emt 00:01:26]} Rg8 {[%clk 00:27:42]} {[%emt 00:09:05]} 17.
Bh6+ {[%clk 00:43:52]} {[%emt 00:00:24]} 1-0

[Event "FIDE U16 Olympiad_boards_81-124"]
[Site "Eindhoven, Netherlands"]
[Date "2023.08.14"]
[Round "2.24"]
[White "Gikandi, Bernice Wambui"]
[Black "Yan, Weilun"]
[Result "0-1"]
[TimeControl "45min+10sec"]
[WhiteElo "1179"]
[BlackElo "1390"]

1. d4 {[%clk 00:45:15]} {[%emt 00:00:03]} d5 {[%clk 00:45:19]} {[%emt
00:00:02]} 2. c4 {[%clk 00:45:15]} {[%emt 00:00:10]} e6 {[%clk 00:45:28]}
{[%emt 00:00:01]} 3. Nf3 {[%clk 00:44:40]} {[%emt 00:00:46]} Nf6 {[%clk
00:45:33]} {[%emt 00:00:04]} 4. Nc3 {[%clk 00:44:43]} {[%emt 00:00:07]} Be7
{[%clk 00:45:41]} {[%emt 00:00:02]} 5. Bg5 {[%clk 00:44:50]} {[%emt 00:00:03]}
h6 {[%clk 00:45:50]} {[%emt 00:00:02]} 6. Bh4 {[%clk 00:44:55]} {[%emt
00:00:04]} O-O {[%clk 00:45:56]} {[%emt 00:00:04]} 7. e3 {[%clk 00:45:02]}
{[%emt 00:00:03]} Nbd7 {[%clk 00:46:03]} {[%emt 00:00:03]} 8. Bd3 {[%clk
00:45:07]} {[%emt 00:00:05]} dxc4 {[%clk 00:46:10]} {[%emt 00:00:04]} 9. Bxc4
{[%clk 00:45:13]} {[%emt 00:00:03]} c5 {[%clk 00:46:19]} {[%emt 00:00:02]} 10.
O-O {[%clk 00:45:10]} {[%emt 00:00:13]} cxd4 {[%clk 00:44:41]} {[%emt
00:01:48]} 11. exd4 {[%clk 00:45:13]} {[%emt 00:00:06]} a6 {[%clk 00:42:40]}
{[%emt 00:02:11]} 12. Qd2 {[%clk 00:43:39]} {[%emt 00:01:45]} b5 {[%clk
00:41:41]} {[%emt 00:01:08]} 13. Be2 {[%clk 00:43:33]} {[%emt 00:00:16]} Bb7
{[%clk 00:41:04]} {[%emt 00:00:47]} 14. a3 {[%clk 00:42:33]} {[%emt 00:01:10]}
Nb6 {[%clk 00:39:51]} {[%emt 00:01:23]} 15. Rfd1 {[%clk 00:40:30]} {[%emt
00:02:14]} Rc8 {[%clk 00:38:57]} {[%emt 00:01:03]} 16. Rac1 {[%clk 00:40:23]}
{[%emt 00:00:17]} Nfd5 {[%clk 00:35:30]} {[%emt 00:03:37]} 17. Bg3 {[%clk
00:39:20]} {[%emt 00:01:13]} Nxc3 {[%clk 00:34:22]} {[%emt 00:01:18]} 18. Rxc3
{[%clk 00:38:58]} {[%emt 00:00:32]} Rxc3 {[%clk 00:32:59]} {[%emt 00:01:33]} 19.
Qxc3 {[%clk 00:38:28]} {[%emt 00:00:40]} Nd5 {[%clk 00:31:22]} {[%emt
00:01:47]} 20. Qc2 {[%clk 00:37:57]} {[%emt 00:00:40]} Qa8 {[%clk 00:28:37]}
{[%emt 00:02:55]} 21. Ne5 {[%clk 00:32:43]} {[%emt 00:05:24]} Rc8 {[%clk
00:27:38]} {[%emt 00:01:08]} 22. Qd3 {[%clk 00:32:10]} {[%emt 00:00:45]} Nf6
{[%clk 00:26:04]} {[%emt 00:01:44]} 23. Bf3 {[%clk 00:30:50]} {[%emt 00:01:29]}
Bxf3 {[%clk 00:25:08]} {[%emt 00:01:06]} 24. Nxf3 {[%emt 00:00:16]} Qd5 {[%clk
00:23:56]} {[%emt 00:01:18]} 25. h3 {[%clk 00:28:25]} {[%emt 00:02:33]} Bd6
{[%clk 00:22:04]} {[%emt 00:02:01]} 26. Bxd6 {[%clk 00:27:50]} {[%emt
00:00:46]} Qxd6 {[%clk 00:22:13]} 27. Ne5 {[%clk 00:27:06]} {[%emt 00:00:55]}
Qd5 {[%clk 00:21:01]} {[%emt 00:01:19]} 28. Qd2 {[%clk 00:24:08]} {[%emt
00:03:10]} Ne4 {[%clk 00:17:56]} {[%emt 00:03:16]} 29. Qf4 {[%clk 00:22:13]}
{[%emt 00:02:04]} Nf6 {[%clk 00:16:07]} {[%emt 00:01:59]} 30. Qd2 {[%clk
00:21:26]} {[%emt 00:00:57]} Ne4 {[%clk 00:10:51]} {[%emt 00:05:26]} 31. Qf4
{[%clk 00:21:00]} {[%emt 00:00:36]} Nd6 {[%clk 00:10:56]} {[%emt 00:00:06]} 32.
Nd7 {[%clk 00:16:44]} {[%emt 00:04:25]} Rc7 {[%clk 00:09:46]} {[%emt 00:01:20]}
33. Ne5 {[%clk 00:16:23]} {[%emt 00:00:30]} Rc2 {[%clk 00:09:14]} {[%emt
00:00:43]} 34. Rd2 {[%clk 00:15:23]} {[%emt 00:01:11]} Rxd2 {[%clk 00:03:22]}
{[%emt 00:06:01]} 35. Qxd2 {[%clk 00:15:29]} {[%emt 00:00:04]} Nc4 {[%clk
00:02:40]} {[%emt 00:00:52]} 36. Nxc4 {[%clk 00:15:25]} {[%emt 00:00:14]} Qxc4
{[%clk 00:02:41]} {[%emt 00:00:09]} 37. Qc3 {[%clk 00:15:15]} {[%emt 00:00:20]}
Qxc3 {[%clk 00:01:56]} {[%emt 00:00:55]} 38. bxc3 {[%clk 00:15:22]} {[%emt
00:00:02]} Kf8 {[%clk 00:02:06]} {[%emt 00:00:02]} 39. Kf1 {[%emt 00:00:03]}
Ke7 40. Ke2 {[%clk 00:15:37]} {[%emt 00:00:03]} Kd6 {[%clk 00:02:24]} 41. Kd3
{[%clk 00:15:42]} {[%emt 00:00:04]} Kd5 {[%clk 00:02:32]} {[%emt 00:00:02]} 42.
f3 {[%clk 00:15:47]} {[%emt 00:00:05]} g5 {[%clk 00:02:22]} {[%emt 00:00:20]}
43. g3 {[%clk 00:15:09]} {[%emt 00:00:49]} f5 {[%clk 00:02:04]} {[%emt
00:00:28]} 44. h4 {[%clk 00:12:42]} {[%emt 00:02:37]} f4 {[%clk 00:01:45]}
{[%emt 00:00:28]} 45. hxg5 {[%clk 00:12:00]} {[%emt 00:00:52]} hxg5 {[%clk
00:00:33]} {[%emt 00:01:23]} 46. g4 {[%clk 00:11:57]} {[%emt 00:00:13]} a5
{[%clk 00:00:21]} {[%emt 00:00:22]} 47. a4 {[%clk 00:11:32]} {[%emt 00:00:34]}
bxa4 {[%clk 00:00:15]} {[%emt 00:00:16]} 48. c4+ {[%clk 00:11:40]} {[%emt
00:00:03]} Kd6 {[%clk 00:00:24]} 49. Kc3 {[%clk 00:11:47]} {[%emt 00:00:02]} e5
{[%clk 00:00:26]} {[%emt 00:00:09]} 50. dxe5+ {[%clk 00:11:55]} {[%emt
00:00:02]} Kxe5 {[%clk 00:00:36]} 51. c5 {[%clk 00:12:01]} {[%emt 00:00:04]}
Kd5 {[%clk 00:00:45]} {[%emt 00:00:01]} 52. c6 {[%clk 00:12:05]} {[%emt
00:00:06]} Kxc6 {[%clk 00:00:54]} 53. Kb2 {[%clk 00:12:12]} {[%emt 00:00:02]}
Kb5 {[%clk 00:01:03]} {[%emt 00:00:01]} 54. Kc3 {[%clk 00:12:17]} {[%emt
00:00:06]} Kc5 {[%emt 00:00:02]} 55. Kb2 {[%clk 00:12:14]} {[%emt 00:00:11]}
Kd4 {[%clk 00:01:21]} {[%emt 00:00:02]} 56. Ka3 {[%clk 00:12:22]} {[%emt
00:00:02]} Ke3 {[%clk 00:01:30]} 57. Kxa4 {[%clk 00:12:30]} {[%emt 00:00:02]}
Kxf3 {[%clk 00:01:39]} {[%emt 00:00:01]} 58. Kxa5 {[%clk 00:12:38]} {[%emt
00:00:02]} Kxg4 {[%clk 00:01:48]} {[%emt 00:00:02]} 59. Kb4 {[%clk 00:12:47]}
f3 {[%clk 00:01:57]} {[%emt 00:00:01]} 60. Kc3 {[%clk 00:12:56]} {[%emt
00:00:01]} f2 {[%clk 00:02:06]} 61. Kd4 {[%clk 00:13:04]} {[%emt 00:00:02]}
f1=Q {[%clk 00:02:14]} {[%emt 00:00:02]} 62. Kd5 {[%clk 00:13:12]} {[%emt
00:00:01]} Qe2 {[%clk 00:02:23]} {[%emt 00:00:02]} 63. Kd4 {[%clk 00:13:19]}
{[%emt 00:00:02]} Kf4 {[%clk 00:02:32]} {[%emt 00:00:02]} 64. Kd5 {[%clk
00:13:27]} {[%emt 00:00:02]} Qe4+ {[%clk 00:02:41]} 65. Kd6 {[%clk 00:13:33]}
{[%emt 00:00:05]} Qe5+ {[%clk 00:02:50]} {[%emt 00:00:01]} 66. Kc6 {[%clk
00:13:40]} {[%emt 00:00:03]} Qd4 {[%clk 00:02:58]} {[%emt 00:00:01]} 67. Kc7
{[%clk 00:13:48]} {[%emt 00:00:02]} Qf6 {[%clk 00:03:07]} {[%emt 00:00:01]} 68.
Kd7 {[%clk 00:13:55]} {[%emt 00:00:04]} Ke5 {[%clk 00:03:16]} 69. Kc7 {[%clk
00:14:02]} {[%emt 00:00:02]} Qd6+ {[%clk 00:03:25]} {[%emt 00:00:02]} 70. Kc8
{[%clk 00:14:10]} {[%emt 00:00:01]} Qe7 {[%clk 00:03:34]} 71. Kb8 {[%clk
00:14:18]} {[%emt 00:00:03]} Kd6 {[%clk 00:03:43]} 72. Ka8 {[%clk 00:14:24]}
{[%emt 00:00:05]} Kc6 {[%clk 00:03:51]} {[%emt 00:00:02]} 73. Kb8 {[%clk
00:14:32]} {[%emt 00:00:02]} Qb7# {[%clk 00:03:40]} {[%emt 00:00:01]} 0-1

[Event "FIDE U16 Olympiad_boards_81-124"]
[Site "Eindhoven, Netherlands"]
[Date "2023.08.14"]
[Round "2.25"]
[White "Cauchi, Noah"]
[Black "Pusara, Mihailo"]
[Result "1-0"]
[TimeControl "45min+10sec"]
[WhiteElo "1530"]
[BlackElo "1873"]

1. e4 {[%clk 00:45:18]} {[%emt 00:00:02]} e5 {[%clk 00:45:18]} {[%emt
00:00:02]} 2. Nf3 {[%clk 00:45:26]} {[%emt 00:00:02]} Nf6 {[%clk 00:45:26]}
{[%emt 00:00:02]} 3. Nxe5 {[%clk 00:45:28]} {[%emt 00:00:08]} d6 {[%clk
00:45:34]} {[%emt 00:00:02]} 4. Nf3 {[%emt 00:00:03]} Nxe4 {[%clk 00:45:42]}
{[%emt 00:00:02]} 5. d4 {[%clk 00:45:39]} {[%emt 00:00:07]} d5 {[%clk
00:45:50]} 6. Bd3 {[%clk 00:45:41]} {[%emt 00:00:08]} Bd6 {[%clk 00:45:58]}
{[%emt 00:00:02]} 7. c4 {[%clk 00:45:35]} {[%emt 00:00:16]} c6 {[%clk
00:45:28]} {[%emt 00:00:41]} 8. O-O {[%clk 00:45:42]} {[%emt 00:00:02]} O-O
{[%clk 00:45:35]} {[%emt 00:00:03]} 9. Nc3 {[%clk 00:45:42]} {[%emt 00:00:10]}
Nxc3 {[%clk 00:44:57]} {[%emt 00:00:47]} 10. bxc3 {[%clk 00:45:50]} {[%emt
00:00:03]} dxc4 {[%clk 00:44:21]} {[%emt 00:00:46]} 11. Bxc4 {[%clk 00:45:59]}
{[%emt 00:00:01]} Bf5 {[%clk 00:40:26]} {[%emt 00:04:06]} 12. Bg5 {[%clk
00:43:39]} {[%emt 00:02:29]} Qc7 {[%clk 00:40:33]} {[%emt 00:00:03]} 13. Re1
{[%clk 00:42:58]} {[%emt 00:00:51]} Nd7 {[%clk 00:40:25]} {[%emt 00:00:18]} 14.
h3 {[%clk 00:42:52]} {[%emt 00:00:16]} Rfe8 {[%clk 00:38:59]} {[%emt 00:01:36]}
15. Nh4 {[%clk 00:41:00]} {[%emt 00:02:02]} Be4 {[%clk 00:37:38]} {[%emt
00:01:31]} 16. Qg4 {[%clk 00:40:39]} {[%emt 00:00:31]} Bd5 {[%clk 00:37:06]}
{[%emt 00:00:42]} 17. Bxd5 {[%clk 00:39:59]} {[%emt 00:00:51]} cxd5 {[%clk
00:37:14]} {[%emt 00:00:02]} 18. Nf5 {[%clk 00:38:16]} {[%emt 00:01:53]} Bf8
{[%clk 00:36:38]} {[%emt 00:00:45]} 19. Nh6+ {[%clk 00:35:21]} {[%emt
00:03:05]} Kh8 {[%clk 00:36:07]} {[%emt 00:00:41]} 20. Nxf7+ {[%clk 00:35:29]}
{[%emt 00:00:02]} Kg8 {[%clk 00:36:15]} {[%emt 00:00:02]} 21. Ne5 {[%clk
00:33:42]} {[%emt 00:01:57]} Nxe5 {[%clk 00:35:19]} {[%emt 00:01:06]} 22. dxe5
{[%clk 00:33:29]} {[%emt 00:00:23]} Rxe5 {[%clk 00:33:03]} {[%emt 00:02:26]} 23.
Bf6 {[%clk 00:30:46]} {[%emt 00:02:53]} Rxe1+ {[%clk 00:30:45]} {[%emt
00:02:28]} 24. Rxe1 {[%clk 00:30:54]} {[%emt 00:00:02]} Qf7 {[%clk 00:29:29]}
{[%emt 00:01:26]} 25. Bd4 {[%clk 00:30:49]} {[%emt 00:00:15]} a6 {[%clk
00:25:01]} {[%emt 00:04:37]} 26. Qe6 {[%clk 00:25:33]} {[%emt 00:05:27]} Qxe6
{[%clk 00:21:16]} {[%emt 00:03:55]} 27. Rxe6 {[%clk 00:25:41]} {[%emt
00:00:02]} b5 {[%clk 00:21:24]} {[%emt 00:00:01]} 28. Kf1 {[%clk 00:24:20]}
{[%emt 00:01:31]} a5 {[%clk 00:19:23]} {[%emt 00:02:11]} 29. Re5 {[%clk
00:24:09]} {[%emt 00:00:21]} Rd8 {[%clk 00:16:57]} {[%emt 00:02:37]} 30. Bb6
{[%clk 00:24:17]} {[%emt 00:00:01]} Rb8 {[%clk 00:14:39]} {[%emt 00:02:28]} 31.
Bxa5 {[%clk 00:24:11]} {[%emt 00:00:16]} Ra8 {[%clk 00:14:48]} 32. Bb4 {[%clk
00:24:19]} {[%emt 00:00:02]} Bxb4 {[%clk 00:14:54]} {[%emt 00:00:03]} 33. cxb4
{[%clk 00:24:27]} {[%emt 00:00:03]} Rd8 {[%clk 00:11:53]} {[%emt 00:03:11]} 34.
Ke2 {[%clk 00:24:13]} {[%emt 00:00:24]} Kf7 {[%clk 00:11:55]} {[%emt 00:00:08]}
35. Kd3 {[%clk 00:24:22]} Kf6 {[%clk 00:12:00]} {[%emt 00:00:06]} 36. Kd4
{[%clk 00:24:21]} {[%emt 00:00:10]} Rc8 {[%clk 00:12:01]} {[%emt 00:00:09]} 37.
Rxd5 {[%clk 00:23:58]} {[%emt 00:00:33]} Rc4+ {[%clk 00:12:06]} {[%emt
00:00:05]} 38. Kd3 {[%clk 00:22:55]} {[%emt 00:01:13]} Rxb4 {[%clk 00:12:14]}
{[%emt 00:00:02]} 39. Kc3 {[%clk 00:23:04]} {[%emt 00:00:02]} Rc4+ {[%clk
00:07:35]} {[%emt 00:04:49]} 40. Kb3 {[%clk 00:22:53]} {[%emt 00:00:21]} Re4
{[%clk 00:07:36]} {[%emt 00:00:08]} 41. Rxb5 {[%clk 00:22:08]} {[%emt
00:00:56]} Re2 {[%clk 00:07:44]} 42. Rc5 {[%clk 00:22:13]} {[%emt 00:00:05]}
Rxf2 {[%clk 00:07:40]} {[%emt 00:00:14]} 43. Rc2 {[%clk 00:22:22]} {[%emt
00:00:01]} Rf4 {[%clk 00:06:45]} {[%emt 00:01:05]} 44. a4 {[%clk 00:22:22]}
{[%emt 00:00:11]} Rf1 {[%clk 00:03:00]} {[%emt 00:03:54]} 45. a5 {[%clk
00:22:23]} {[%emt 00:00:09]} Rb1+ {[%clk 00:02:57]} {[%emt 00:00:13]} 46. Rb2
{[%clk 00:22:03]} {[%emt 00:00:31]} Ra1 {[%clk 00:03:04]} {[%emt 00:00:02]} 47.
Ra2 {[%clk 00:22:13]} {[%emt 00:00:01]} Rb1+ {[%clk 00:03:12]} {[%emt
00:00:02]} 48. Kc2 {[%clk 00:21:39]} {[%emt 00:00:43]} Rb7 {[%clk 00:02:53]}
{[%emt 00:00:29]} 49. Kc3 {[%clk 00:21:30]} {[%emt 00:00:19]} Ke6 {[%clk
00:02:54]} {[%emt 00:00:09]} 50. Kc4 {[%clk 00:21:38]} {[%emt 00:00:02]} Kd6
{[%clk 00:02:51]} {[%emt 00:00:13]} 51. a6 {[%clk 00:21:47]} {[%emt 00:00:01]}
Ra7 {[%clk 00:02:27]} {[%emt 00:00:34]} 52. Kb5 {[%clk 00:21:56]} {[%emt
00:00:01]} Ra8 {[%clk 00:02:15]} {[%emt 00:00:22]} 53. Kb6 {[%clk 00:21:17]}
{[%emt 00:00:49]} Rb8+ {[%clk 00:02:22]} {[%emt 00:00:03]} 54. Ka7 {[%clk
00:21:26]} {[%emt 00:00:01]} Rb3 {[%clk 00:02:02]} {[%emt 00:00:30]} 55. Rf2
{[%clk 00:21:20]} {[%emt 00:00:16]} Ke7 {[%clk 00:01:23]} {[%emt 00:00:49]} 56.
Rf3 {[%clk 00:20:43]} {[%emt 00:00:47]} Rb2 {[%clk 00:01:10]} {[%emt 00:00:23]}
57. Rg3 {[%clk 00:20:45]} {[%emt 00:00:08]} g6 {[%clk 00:01:11]} {[%emt
00:00:09]} 58. Rg4 {[%clk 00:20:46]} {[%emt 00:00:09]} Kd7 {[%clk 00:00:55]}
{[%emt 00:00:26]} 59. Rh4 {[%clk 00:20:21]} {[%emt 00:00:35]} h5 {[%clk
00:00:56]} {[%emt 00:00:09]} 60. Rd4 {[%clk 00:20:28]} {[%emt 00:00:04]} Kc6
{[%clk 00:00:49]} {[%emt 00:00:16]} 61. g4 {[%clk 00:20:12]} {[%emt 00:00:26]}
Re2 {[%clk 00:00:19]} {[%emt 00:00:40]} 62. Rb4 {[%clk 00:20:01]} {[%emt
00:00:21]} hxg4 {[%clk 00:00:13]} {[%emt 00:00:16]} 63. hxg4 {[%clk 00:20:08]}
{[%emt 00:00:02]} Re7+ {[%clk 00:00:21]} {[%emt 00:00:02]} 64. Rb7 {[%clk
00:20:17]} {[%emt 00:00:02]} Re4 {[%clk 00:00:27]} {[%emt 00:00:04]} 65. Rb6+
{[%clk 00:20:12]} {[%emt 00:00:14]} Kc5 {[%clk 00:00:30]} {[%emt 00:00:08]} 66.
Rxg6 {[%clk 00:20:14]} {[%emt 00:00:08]} Re7+ {[%clk 00:00:37]} {[%emt
00:00:02]} 67. Kb8 {[%clk 00:20:22]} {[%emt 00:00:03]} Re8+ {[%clk 00:00:46]}
{[%emt 00:00:01]} 68. Kc7 {[%clk 00:20:28]} {[%emt 00:00:04]} Kb5 {[%clk
00:00:41]} {[%emt 00:00:15]} 69. g5 {[%clk 00:19:57]} {[%emt 00:00:41]} Rh8
{[%clk 00:00:34]} {[%emt 00:00:17]} 70. Rb6+ {[%clk 00:19:45]} {[%emt
00:00:22]} Ka5 {[%clk 00:00:27]} {[%emt 00:00:17]} 71. Rd6 {[%clk 00:19:31]}
{[%emt 00:00:24]} 1-0